{"text_format":"1","workbook":"xlsx","n_sheets":2,"sheets":["Sheet1","Graph"],"not_rendered":{"charts":1,"images":0,"macros":1,"external_links":0,"defined_names":0,"comments":1,"pivot_tables":0},"unopened":[],"bounds":{"document_bytes":16777216,"sheet_cells":100000,"rows_first":2000,"rows_last":500,"rows_between":2000,"halvings":0,"cell_chars":16384,"cell_head_chars":4096},"cells_cut":0,"cells_raw":0,"read":"whole","date_system":"1900"}

{"sheet":"Sheet1","index":0,"n_rows":13,"n_cols":10,"rows_kept":13,"cut":false,"hidden":false,"merged":[]}
["Activity","Description","Precedence","Days","Earliest Start time     (ES T)","Earliest Finish Time  (EF T)","Latest Start Time  (LS T)","Latest Finish Time  (LF T)","Slack","Critical"]
["Step1","Dig Foundation",null,4,{"$f":"MAX(0)","v":0},{"$f":"SUM(Table2[[#This Row],[Days]:[Earliest Start time     (ES T)]])","v":4},{"$f":"H2-D2","v":3},{"$f":"MIN( $G$5)","v":7},{"$f":"Table2[[#This Row],[Latest Start Time  (LS T)]]-Table2[[#This Row],[Earliest Start time     (ES T)]]","v":3},{"$f":"IF(I2 > 0,\"\",CONCATENATE(Table2[[#Headers],[Critical]], , , , , , , , ,))","v":""}]
["Step2","Obtain Roof tiles","Step6,",12,{"$f":"MAX(0)","v":0},{"$f":"SUM(Table2[[#This Row],[Days]:[Earliest Start time     (ES T)]])","v":12},{"$f":"H3-D3","v":2},{"$f":"MIN( $G$8)","v":14},{"$f":"Table2[[#This Row],[Latest Start Time  (LS T)]]-Table2[[#This Row],[Earliest Start time     (ES T)]]","v":2},{"$f":"IF(I3 > 0,\"\",CONCATENATE(Table2[[#Headers],[Critical]], , , , , , , , ,))","v":""}]
["Step3","Obtain Bricks",null,7,{"$f":"MAX(0)","v":0},{"$f":"SUM(Table2[[#This Row],[Days]:[Earliest Start time     (ES T)]])","v":7},0,{"$f":"MIN( $G$5)","v":7},{"$f":"Table2[[#This Row],[Latest Start Time  (LS T)]]-Table2[[#This Row],[Earliest Start time     (ES T)]]","v":0},{"$f":"IF(I4 > 0,\"\",CONCATENATE(Table2[[#Headers],[Critical]], , , , , , , , ,))","v":"Critical"}]
["Step4","Lay foundation","Step1,Step3",2,{"$f":"MAX($F$2,$F$4)","v":7},{"$f":"SUM(Table2[[#This Row],[Days]:[Earliest Start time     (ES T)]])","v":9},7,{"$f":"MIN( $G$6)","v":9},{"$f":"Table2[[#This Row],[Latest Start Time  (LS T)]]-Table2[[#This Row],[Earliest Start time     (ES T)]]","v":0},{"$f":"IF(I5 > 0,\"\",CONCATENATE(Table2[[#Headers],[Critical]], , , , , , , , ,))","v":"Critical"}]
["Step5","Build Walls","Step5,",10,{"$f":"MAX($F$5)","v":9},{"$f":"SUM(Table2[[#This Row],[Days]:[Earliest Start time     (ES T)]])","v":19},9,{"$f":"MIN( $G$7,$G$9)","v":19},{"$f":"Table2[[#This Row],[Latest Start Time  (LS T)]]-Table2[[#This Row],[Earliest Start time     (ES T)]]","v":0},{"$f":"IF(I6 > 0,\"\",CONCATENATE(Table2[[#Headers],[Critical]], , , , , , , , ,))","v":"Critical"}]
["Step 6","wait walls finish","Step2,",0,{"$f":"MAX($F$6)","v":19},{"$f":"SUM(Table2[[#This Row],[Days]:[Earliest Start time     (ES T)]])","v":19},19,{"$f":"MIN(Table2[[#This Row],[Earliest Start time     (ES T)]])","v":19},{"$f":"Table2[[#This Row],[Latest Start Time  (LS T)]]-Table2[[#This Row],[Earliest Start time     (ES T)]]","v":0},{"$f":"IF(I7 > 0,\"\",CONCATENATE(Table2[[#Headers],[Critical]], , , , , , , , ,))","v":"Critical"}]
["Step7","Roofing","Step6,",5,{"$f":"MAX($F$3)","v":12},{"$f":"SUM(Table2[[#This Row],[Days]:[Earliest Start time     (ES T)]])","v":17},14,{"$f":"MIN( $G$9)","v":19},{"$f":"Table2[[#This Row],[Latest Start Time  (LS T)]]-Table2[[#This Row],[Earliest Start time     (ES T)]]","v":2},{"$f":"IF(I8 > 0,\"\",CONCATENATE(Table2[[#Headers],[Critical]], , , , , , , , ,))","v":""}]
["Step8","Wiring","Step8,Step6",3,{"$f":"MAX($F$6,$F$8)","v":19},{"$f":"SUM(Table2[[#This Row],[Days]:[Earliest Start time     (ES T)]])","v":22},19,{"$f":"MIN( $G$10)","v":22},{"$f":"Table2[[#This Row],[Latest Start Time  (LS T)]]-Table2[[#This Row],[Earliest Start time     (ES T)]]","v":0},{"$f":"IF(I9 > 0,\"\",CONCATENATE(Table2[[#Headers],[Critical]], , , , , , , , ,))","v":"Critical"}]
["Step9","Painting","Step9",4,{"$f":"MAX($F$9)","v":22},{"$f":"SUM(Table2[[#This Row],[Days]:[Earliest Start time     (ES T)]])","v":26},22,{"$f":"$F$10","v":26},{"$f":"Table2[[#This Row],[Latest Start Time  (LS T)]]-Table2[[#This Row],[Earliest Start time     (ES T)]]","v":0},{"$f":"IF(I10 > 0,\"\",CONCATENATE(Table2[[#Headers],[Critical]], , , , , , , , ,))","v":"Critical"}]
[null,null,null,null,null,null,26,26,{"$f":"Table2[[#This Row],[Latest Start Time  (LS T)]]-Table2[[#This Row],[Earliest Start time     (ES T)]]","v":26},{"$f":"IF(I11 > 0,\"\",CONCATENATE(Table2[[#Headers],[Critical]], , , , , , , , ,))","v":""}]
[]
[null,null,null,null,null,null,null,null,null,"Critical,Step3,Step4,Step5,Step6,Step8, Step9"]

{"sheet":"Graph","index":1,"n_rows":0,"n_cols":0,"rows_kept":0,"cut":false,"hidden":false,"merged":[]}